[Event "4NCL Div 1 2018-19"]
[Site "Telford"]
[Date "2019.02.09"]
[Round "5.18"]
[White "Taylor, Adam A"]
[Black "Tan, Justin"]
[Result "0-1"]
[ECO "A07"]
[WhiteElo "2222"]
[BlackElo "2508"]
[Annotator "RC"]
[PlyCount "60"]
[EventDate "2018.11.10"]
[EventType "team-tourn"]
[EventCountry "GBR"]
[SourceTitle "playchess.com"]
[Source "ChessBase"]
[SourceQuality "1"]
[TimeControl "40/6000+30:3000+30"]

1. Nf3 {[%emt 0:06:16]} d5 {[%emt 0:02:55]} 2. g3 {[%emt 0:00:59]} Bg4 {[%emt 0:01:23]} 3. Bg2 {[%emt 0:01:03]} Nd7 {[%emt 0:02:25]} 4. c4 {[%emt 0:06:26]} e6 {[%emt 0:01:08]} 5. cxd5 {[%emt 0:09:33]} exd5 {[%emt 0:00:13]} 6. O-O {[%emt 0:00:08]} Ngf6 {[%emt 0:00:14]} 7. d4 {[%emt 0:03:01]} Bd6 {[%emt 0:02:26]} 8. Nc3 {[%emt 0:05:19]} c6 {[%emt 0:02:11]} 9. Bg5 {[%emt 0:09:24]} O-O {[%emt 0:01:58]} 10. Qd2 {[%emt 0:03:08]} Re8 {[%emt 0:00:59]} 11. Bf4 {[%emt 0:05:32]} Bb4 {[%emt 0:08:33]} 12. Qc2 {[%emt 0:09:59]} Qe7 {[%emt 0:06:42]} 13. Rfe1 {[%emt 0:07:08]} Ne4 {[%emt 0:06:01]} 14. a3 {[%emt 0:04:18]} Bxc3 {[%emt 0:04:04]} 15. bxc3 {[%emt 0:00:29]} Nb6 {[%emt 0:01:00]} 16. a4 {[%emt 0:04:10]} g5 {[%emt 0:07:05]} 17. Bc1 {[%emt 0:02:24]} Qf6 {[%emt 0:01:38]} 18. Rf1 {[%emt 0:03:48]} Bf5 {[%emt 0:05:53]} 19. Qb3 {[%emt 0:02:19]} Qe7 {[%emt 0:00:41]} 20. Ne5 {[%emt 0:09:10]} f6 {[%emt 0:01:46]} 21. a5 {[%emt 0:00:12]} fxe5 {[%emt 0:10:12]} 22. axb6 {[%emt 0:00:07]} exd4 {[%emt 0:00:00]} 23. cxd4 {[%emt 0:00:49]} axb6 {[%emt 0:00:00]} 24. Rxa8 {[%emt 0:02:20]} Rxa8 {[%emt 0:00:01]} 25. Qxb6 {[%emt 0:00:23]} Nc3 {[%emt 0:00:11]} 26. e3 {[%emt 0:01:36]} Bd3 {[%emt 0:00:04]} 27. Re1 {[%emt 0:03:13]} Bb5 {[%emt 0:00:05]} 28. Qc5 {[%emt 0:03:38]} Qxc5 {[%emt 0:00:03]} 29. dxc5 {[%emt 0:00:05]} Ra2 {[%emt 0:00:22]} 30. Bh3 {[%emt 0:03:05]} Re2 {[%emt 0:00:14]} 0-1

[Event "4NCL Div 1 2018-19"]
[Site "Telford"]
[Date "2019.02.09"]
[Round "5.19"]
[White "Fernandez, Daniel Howard"]
[Black "Moreby, James"]
[Result "1-0"]
[ECO "C01"]
[WhiteElo "2471"]
[BlackElo "2252"]
[Annotator "ChessBase"]
[PlyCount "115"]
[EventDate "2018.11.10"]
[EventType "team-tourn"]
[EventCountry "GBR"]
[SourceTitle "playchess.com"]
[Source "ChessBase"]
[SourceQuality "1"]
[TimeControl "40/6000+30:3000+30"]

1. e4 {[%emt 0:11:52]} e6 {[%emt 0:00:00]} 2. d4 {[%emt 0:01:16]} d5 {[%emt 0:00:00]} 3. Nc3 {[%emt 0:04:18]} Nf6 {[%emt 0:00:00]} 4. Bg5 {[%emt 0:02:01]} Bb4 {[%emt 0:00:00]} 5. exd5 {[%emt 0:01:39]} exd5 {[%emt 0:00:11]} 6. Qf3 {[%emt 0:02:23]} Nbd7 {[%emt 0:12:44]} 7. a3 {[%emt 0:01:37]} Bxc3+ {[%emt 0:03:10]} 8. Qxc3 {[%emt 0:02:24]} O-O {[%emt 0:03:19]} 9. f3 {[%emt 0:03:09]} c6 {[%emt 0:01:57]} 10. Bd3 {[%emt 0:00:38]} Re8+ {[%emt 0:03:17]} 11. Ne2 {[%emt 0:01:00]} Ne4 {[%emt 0:01:08]} 12. Bxd8 {[%emt 0:00:05]} Nxc3 {[%emt 0:00:04]} 13. Bh4 {[%emt 0:00:23]} Nxe2 {[%emt 0:00:35]} 14. Bxe2 {[%emt 0:00:03]} Nf8 {[%emt 0:00:22]} 15. Kd2 {[%emt 0:00:16]} Bf5 {[%emt 0:03:16]} 16. Rhe1 {[%emt 0:00:37]} Ne6 {[%emt 0:06:40]} 17. Bf2 {[%emt 0:00:03]} Kf8 {[%emt 0:01:47]} 18. a4 {[%emt 0:00:03]} Ke7 {[%emt 0:05:07]} 19. Bf1 {[%emt 0:01:03]} Kd7 {[%emt 0:01:06]} 20. a5 {[%emt 0:00:19]} Nc7 {[%emt 0:06:41]} 21. Re5 {[%emt 0:00:32]} Bg6 {[%emt 0:00:38]} 22. g3 {[%emt 0:01:30]} f6 {[%emt 0:00:30]} 23. Bh3+ {[%emt 0:00:04]} Kd6 {[%emt 0:00:10]} 24. Re3 {[%emt 0:02:46]} Nb5 {[%emt 0:05:47]} 25. c3 {[%emt 0:00:18]} Kc7 {[%emt 0:02:38]} 26. Rae1 {[%emt 0:03:14]} Rxe3 {[%emt 0:00:13]} 27. Bxe3 {[%emt 0:00:32]} Re8 {[%emt 0:01:25]} 28. b3 {[%emt 0:00:09]} Kd8 {[%emt 0:05:01]} 29. Bf1 {[%emt 0:01:07]} a6 {[%emt 0:02:16]} 30. c4 {[%emt 0:01:04]} dxc4 {[%emt 0:01:06]} 31. bxc4 {[%emt 0:00:03]} Nd6 {[%emt 0:00:11]} 32. Kc3 {[%emt 0:02:37]} Nf5 {[%emt 0:06:16]} 33. Bf2 {[%emt 0:01:20]} Rxe1 {[%emt 0:00:04]} 34. Bxe1 {[%emt 0:00:08]} Nd6 {[%emt 0:00:52]} 35. g4 {[%emt 0:00:43]} h5 {[%emt 0:03:21]} 36. h3 {[%emt 0:01:41]} hxg4 {[%emt 0:00:07]} 37. hxg4 {[%emt 0:00:06]} Bf7 {[%emt 0:00:58]} 38. Kb4 {[%emt 0:00:31]} Be6 {[%emt 0:20:05]} 39. Kc5 {[%emt 0:01:25]} Nc8 {[%emt 0:01:26]} 40. Be2 {[%emt 0:02:54]} f5 {[%emt 0:03:31]} 41. d5 {[%emt 0:51:03]} cxd5 {[%emt 0:51:22]} 42. cxd5 {[%emt 0:00:57]} Bd7 {[%emt 0:00:09]} 43. Bc3 {[%emt 0:00:06]} g6 {[%emt 0:00:36]} 44. Bf6+ {[%emt 0:00:16]} Ke8 {[%emt 0:00:21]} 45. g5 {[%emt 0:00:20]} Ba4 {[%emt 0:01:16]} 46. f4 {[%emt 0:00:15]} Kd7 {[%emt 0:02:24]} 47. Be5 {[%emt 0:00:03]} Bb3 {[%emt 0:00:50]} 48. Bf3 {[%emt 0:00:49]} Ba4 {[%emt 0:01:22]} 49. d6 {[%emt 0:02:59]} Bc6 {[%emt 0:00:19]} 50. Bd1 {[%emt 0:00:03]} Na7 {[%emt 0:04:52]} 51. Bb3 {[%emt 0:00:27]} Ke8 {[%emt 0:01:19]} 52. Kb6 {[%emt 0:00:14]} Nb5 {[%emt 0:00:00]} 53. Be6 {[%emt 0:00:00]} Bd7 {[%emt 0:00:00]} 54. Bd5 {[%emt 0:00:00]} Bc8 {[%emt 0:00:00]} 55. Bxb7 {[%emt 0:00:00]} Bxb7 {[%emt 0:00:00]} 56. Kxb7 {[%emt 0:00:00]} Kd7 {[%emt 0:00:00]} 57. Kxa6 {[%emt 0:00:00]} Na3 {[%emt 0:00:00]} 58. Kb7 {[%emt 0:00:00]} 1-0

[Event "4NCL Div 1 2018-19"]
[Site "Telford"]
[Date "2019.02.09"]
[Round "5.19"]
[White "Longson, Alexander"]
[Black "Bates, Richard A"]
[Result "1/2-1/2"]
[ECO "B90"]
[WhiteElo "2322"]
[BlackElo "2378"]
[Annotator "NA"]
[PlyCount "74"]
[EventDate "2018.11.10"]
[EventType "team-tourn"]
[EventCountry "GBR"]
[SourceTitle "playchess.com"]
[Source "ChessBase"]
[SourceQuality "1"]
[TimeControl "40/6000+30:3000+30"]

1. e4 {[%emt 0:00:00]} c5 {[%emt 0:00:00]} 2. Nf3 {[%emt 0:00:00]} d6 {[%emt 0:00:00]} 3. d4 {[%emt 0:00:00]} cxd4 {[%emt 0:00:00]} 4. Nxd4 {[%emt 0:00:06]} Nf6 {[%emt 0:00:02]} 5. Nc3 {[%emt 0:00:08]} a6 {[%emt 0:00:07]} 6. Be3 {[%emt 0:00:25]} e5 {[%emt 0:00:43]} 7. Nb3 {[%emt 0:00:10]} Be7 {[%emt 0:01:58]} 8. f3 {[%emt 0:00:22]} Be6 {[%emt 0:00:06]} 9. Qd2 {[%emt 0:00:10]} O-O {[%emt 0:00:10]} 10. O-O-O {[%emt 0:00:10]} a5 {[%emt 0:04:10]} 11. a4 {[%emt 0:00:17]} Nc6 {[%emt 0:04:50]} 12. g4 {[%emt 0:00:17]} Nb4 {[%emt 0:04:00]} 13. g5 {[%emt 0:01:33]} Nd7 {[%emt 0:02:39]} 14. h4 {[%emt 0:14:58]} Rc8 {[%emt 0:16:26]} 15. Kb1 {[%emt 0:05:18]} Nb6 {[%emt 0:13:28]} 16. Bb5 {[%emt 0:27:47]} d5 {[%emt 0:10:07]} 17. Qf2 {[%emt 0:07:57]} d4 {[%emt 0:07:29]} 18. Nxd4 {[%emt 0:00:34]} exd4 {[%emt 0:00:37]} 19. Bxd4 {[%emt 0:10:48]} Nc4 {[%emt 0:07:01]} 20. Bxg7 {[%emt 0:08:57]} Qc7 {[%emt 0:01:16]} 21. Bxf8 {[%emt 0:06:02]} Na3+ {[%emt 0:07:56]} 22. bxa3 {[%emt 0:11:50]} Qxc3 {[%emt 0:00:38]} 23. axb4 {[%emt 0:02:21]} Qxb4+ {[%emt 0:04:27]} 24. Kc1 {[%emt 0:00:19]} Qa3+ {[%emt 0:04:44]} 25. Kd2 {[%emt 0:00:07]} Bxf8 {[%emt 0:03:19]} 26. Bd3 {[%emt 0:03:03]} Bc5 {[%emt 0:03:59]} 27. Qg3 {[%emt 0:03:38]} Bd6 {[%emt 0:02:37]} 28. e5 {[%emt 0:03:59]} Qc3+ {[%emt 0:00:29]} 29. Ke2 {[%emt 0:00:06]} Bxe5 {[%emt 0:00:30]} 30. f4 {[%emt 0:00:32]} Bd4 {[%emt 0:03:14]} 31. Kf1 {[%emt 0:02:46]} Bb6 {[%emt 0:07:26]} 32. Rh2 {[%emt 0:00:32]} Qc5 {[%emt 0:00:16]} 33. Re2 {[%emt 0:00:46]} Bh3+ {[%emt 0:00:11]} 34. Ke1 {[%emt 0:00:29]} Qb4+ {[%emt 0:00:28]} 35. Rdd2 {[%emt 0:00:27]} Qb1+ {[%emt 0:00:34]} 36. Rd1 {[%emt 0:00:02]} Qb4+ {[%emt 0:00:05]} 37. Rdd2 {[%emt 0:00:05]} Qb1+ {[%emt 0:01:28]} 1/2-1/2

[Event "4NCL Div 1 2018-19"]
[Site "Telford"]
[Date "2019.02.09"]
[Round "5.20"]
[White "Ledger, Andrew J"]
[Black "Ashton, Adam G"]
[Result "0-1"]
[ECO "D35"]
[WhiteElo "2348"]
[BlackElo "2332"]
[Annotator "NA"]
[PlyCount "90"]
[EventDate "2018.11.10"]
[EventType "team-tourn"]
[EventCountry "GBR"]
[SourceTitle "playchess.com"]
[Source "ChessBase"]
[SourceQuality "1"]
[TimeControl "40/6000+30:3000+30"]

1. d4 {[%emt 0:00:00]} d5 {[%emt 0:02:08]} 2. c4 {[%emt 0:00:00]} e6 {[%emt 0:00:03]} 3. Nc3 {[%emt 0:00:00]} Nf6 {[%emt 0:00:14]} 4. cxd5 {[%emt 0:00:00]} exd5 {[%emt 0:00:04]} 5. Bg5 {[%emt 0:00:00]} Be7 {[%emt 0:00:37]} 6. e3 {[%emt 0:00:19]} Nbd7 {[%emt 0:00:38]} 7. Bd3 {[%emt 0:01:48]} c6 {[%emt 0:01:36]} 8. Nf3 {[%emt 0:01:56]} h6 {[%emt 0:08:22]} 9. Bh4 {[%emt 0:01:57]} Nh5 {[%emt 0:04:32]} 10. Bxe7 {[%emt 0:01:08]} Qxe7 {[%emt 0:00:03]} 11. O-O {[%emt 0:00:56]} O-O {[%emt 0:00:17]} 12. Rb1 {[%emt 0:02:16]} Nhf6 {[%emt 0:03:42]} 13. Re1 {[%emt 0:07:13]} Re8 {[%emt 0:08:56]} 14. b4 {[%emt 0:06:15]} a6 {[%emt 0:00:47]} 15. a4 {[%emt 0:02:37]} Ne4 {[%emt 0:06:30]} 16. Qc2 {[%emt 0:07:59]} Ndf6 {[%emt 0:07:26]} 17. Ne5 {[%emt 0:10:05]} Bf5 {[%emt 0:05:19]} 18. Ne2 {[%emt 0:06:12]} Bh7 {[%emt 0:06:40]} 19. Nf4 {[%emt 0:05:09]} Rac8 {[%emt 0:07:42]} 20. a5 {[%emt 0:10:29]} Nd6 {[%emt 0:05:17]} 21. Bxh7+ {[%emt 0:01:03]} Nxh7 {[%emt 0:00:04]} 22. Nfd3 {[%emt 0:01:18]} f6 {[%emt 0:05:26]} 23. Nf3 {[%emt 0:02:12]} Qe4 {[%emt 0:04:45]} 24. Rbc1 {[%emt 0:03:35]} Re7 {[%emt 0:08:45]} 25. Nc5 {[%emt 0:01:51]} Qg4 {[%emt 0:03:30]} 26. h3 {[%emt 0:03:23]} Qh5 {[%emt 0:00:18]} 27. Nd2 {[%emt 0:02:00]} Ng5 {[%emt 0:01:10]} 28. Nf1 {[%emt 0:01:37]} Nge4 {[%emt 0:05:58]} 29. f3 {[%emt 0:02:23]} Ng5 {[%emt 0:03:23]} 30. Ng3 {[%emt 0:08:00]} Qh4 {[%emt 0:00:35]} 31. Kh2 {[%emt 0:01:59]} Rce8 {[%emt 0:04:19]} 32. Nxb7 {[%emt 0:13:48]} Rxb7 {[%emt 0:00:25]} 33. Qxc6 {[%emt 0:00:10]} Ngf7 {[%emt 0:00:22]} 34. Nf5 {[%emt 0:01:14]} Nxf5 {[%emt 0:00:14]} 35. Qxe8+ {[%emt 0:00:57]} Kh7 {[%emt 0:00:04]} 36. Re2 {[%emt 0:02:49]} Qg3+ {[%emt 0:01:25]} 37. Kh1 {[%emt 0:00:03]} Re7 {[%emt 0:00:43]} 38. Qc8 {[%emt 0:01:37]} Nxd4 {[%emt 0:01:20]} 39. Rd2 {[%emt 0:00:13]} Rxe3 {[%emt 0:01:00]} 40. Rg1 {[%emt 0:02:11]} Qe5 {[%emt 0:04:23]} 41. Qxa6 {[%emt 0:20:28]} Nf5 {[%emt 0:02:47]} 42. g4 {[%emt 0:00:58]} Rxf3 {[%emt 0:01:39]} 43. Rd3 {[%emt 0:06:32]} Rf2 {[%emt 0:01:15]} 44. Rg2 {[%emt 0:00:58]} Rf1+ {[%emt 0:00:15]} 45. Rg1 {[%emt 0:00:06]} Qe4+ {[%emt 0:00:07]} 0-1

[Event "4NCL Div 1 2018-19"]
[Site "Telford"]
[Date "2019.02.09"]
[Round "5.20"]
[White "Coathup, Roger H"]
[Black "Haria, Ravi"]
[Result "0-1"]
[ECO "D31"]
[WhiteElo "2162"]
[BlackElo "2436"]
[Annotator "NA"]
[PlyCount "56"]
[EventDate "2018.11.10"]
[EventType "team-tourn"]
[EventCountry "GBR"]
[SourceTitle "playchess.com"]
[Source "ChessBase"]
[SourceQuality "1"]
[TimeControl "40/6000+30:3000+30"]

1. d4 {[%emt 0:00:00]} e6 {[%emt 0:06:52]} 2. c4 {[%emt 0:00:00]} d5 {[%emt 0:01:03]} 3. Nc3 {[%emt 0:00:00]} a6 {[%emt 0:00:14]} 4. e4 {[%emt 0:05:38]} dxe4 {[%emt 0:01:52]} 5. Nxe4 {[%emt 0:00:26]} Bb4+ {[%emt 0:00:31]} 6. Nc3 {[%emt 0:02:06]} c5 {[%emt 0:00:12]} 7. a3 {[%emt 0:03:16]} Ba5 {[%emt 0:02:03]} 8. Nf3 {[%emt 0:01:14]} Nf6 {[%emt 0:06:18]} 9. Bg5 {[%emt 0:09:56]} cxd4 {[%emt 0:07:19]} 10. Nxd4 {[%emt 0:01:43]} Bxc3+ {[%emt 0:06:40]} 11. bxc3 {[%emt 0:00:05]} Qa5 {[%emt 0:01:02]} 12. Bd2 {[%emt 0:03:12]} O-O {[%emt 0:04:37]} 13. Be2 {[%emt 0:02:09]} Rd8 $15 {[%emt 0:13:51]} 14. Qc2 {[%emt 0:10:25]} h6 {[%emt 0:19:25]} 15. O-O {[%emt 0:01:58]} e5 {[%emt 0:02:27]} 16. Nb3 {[%emt 0:08:10]} Qc7 {[%emt 0:06:07]} 17. Be3 {[%emt 0:03:25]} Ng4 {[%emt 0:07:10]} 18. Bxg4 {[%emt 0:04:58]} Bxg4 {[%emt 0:00:14]} 19. Nc5 {[%emt 0:04:15]} Nd7 {[%emt 0:03:03]} 20. Nxd7 {[%emt 0:03:37]} Bxd7 {[%emt 0:00:20]} 21. Rab1 {[%emt 0:02:59]} Qxc4 {[%emt 0:06:33]} 22. Rxb7 {[%emt 0:01:28]} Bb5 {[%emt 0:06:56]} 23. Rc1 {[%emt 0:06:33]} Rd3 {[%emt 0:00:00]} 24. Ba7 {[%emt 0:03:51]} Qd5 {[%emt 0:01:23]} 25. Rb8+ {[%emt 0:00:51]} Rxb8 {[%emt 0:00:06]} 26. Bxb8 {[%emt 0:00:06]} Rd2 {[%emt 0:00:24]} 27. Qb1 {[%emt 0:01:03]} Bc6 {[%emt 0:00:07]} 28. f3 {[%emt 0:00:08]} Rxg2+ {[%emt 0:00:25]} 0-1

[Event "4NCL Div 1 2018-19"]
[Site "Telford"]
[Date "2019.02.09"]
[Round "5.21"]
[White "Houska, Jovanka"]
[Black "Buckley, David E"]
[Result "1-0"]
[ECO "A49"]
[WhiteElo "2424"]
[BlackElo "2247"]
[Annotator "NA"]
[PlyCount "71"]
[EventDate "2018.11.10"]
[EventType "team-tourn"]
[EventCountry "GBR"]
[SourceTitle "playchess.com"]
[Source "ChessBase"]
[SourceQuality "1"]
[TimeControl "40/6000+30:3000+30"]

1. d4 {[%emt 0:00:00]} Nf6 {[%emt 0:00:00]} 2. Nf3 {[%emt 0:00:00]} g6 {[%emt 0:00:04]} 3. g3 {[%emt 0:00:38]} Bg7 {[%emt 0:01:33]} 4. Bg2 {[%emt 0:00:08]} O-O {[%emt 0:00:18]} 5. O-O {[%emt 0:00:04]} d6 {[%emt 0:01:57]} 6. b3 {[%emt 0:00:59]} e5 {[%emt 0:05:11]} 7. dxe5 {[%emt 0:00:33]} Ng4 {[%emt 0:06:12]} 8. Bb2 {[%emt 0:01:30]} Nxe5 {[%emt 0:03:04]} 9. Nxe5 {[%emt 0:01:45]} dxe5 {[%emt 0:00:11]} 10. Nd2 {[%emt 0:01:58]} Qe7 {[%emt 0:06:19]} 11. Nc4 {[%emt 0:00:29]} Rd8 {[%emt 0:00:22]} 12. Qc1 {[%emt 0:01:42]} Nc6 {[%emt 0:01:35]} 13. Bxc6 {[%emt 0:06:39]} bxc6 {[%emt 0:00:37]} 14. Qe3 {[%emt 0:00:06]} f6 {[%emt 0:04:29]} 15. Rfd1 {[%emt 0:02:10]} Rd5 $14 {[%emt 0:05:03]} 16. Qc3 {[%emt 0:02:44]} Ba6 {[%emt 0:10:56]} 17. Rxd5 {[%emt 0:57:28]} cxd5 {[%emt 0:00:07]} 18. Nxe5 {[%emt 0:00:04]} fxe5 {[%emt 0:15:27]} 19. Qc6 {[%emt 0:00:05]} Re8 {[%emt 0:13:30]} 20. Qxa6 {[%emt 0:00:53]} Qc5 {[%emt 0:00:49]} 21. Ba3 {[%emt 0:04:58]} Qd4 {[%emt 0:07:46]} 22. c3 {[%emt 0:01:55]} Qb6 {[%emt 0:04:44]} 23. Qd3 {[%emt 0:04:28]} c6 {[%emt 0:06:22]} 24. e4 {[%emt 0:00:42]} dxe4 {[%emt 0:04:05]} 25. Qxe4 {[%emt 0:00:06]} Rd8 {[%emt 0:00:08]} 26. Qc4+ {[%emt 0:03:57]} Rd5 {[%emt 0:01:36]} 27. Rd1 {[%emt 0:04:02]} Qd8 {[%emt 0:02:31]} 28. Bc5 {[%emt 0:00:15]} Kh8 {[%emt 0:00:32]} 29. Re1 {[%emt 0:01:03]} Qd7 {[%emt 0:03:01]} 30. a4 {[%emt 0:01:44]} Bh6 {[%emt 0:02:26]} 31. Kg2 {[%emt 0:01:03]} Qf5 {[%emt 0:01:30]} 32. Bxa7 {[%emt 0:01:05]} Bd2 {[%emt 0:00:32]} 33. Qxc6 {[%emt 0:02:13]} Bxe1 {[%emt 0:00:27]} 34. Qxd5 {[%emt 0:00:08]} Bxc3 {[%emt 0:00:14]} 35. Qd8+ {[%emt 0:00:11]} Kg7 {[%emt 0:00:28]} 36. Qc7+ {[%emt 0:00:04]} 1-0

[Event "4NCL Div 1 2018-19"]
[Site "Telford"]
[Date "2019.02.09"]
[Round "5.21"]
[White "Abbas, Daniel"]
[Black "Ansell, Simon T"]
[Result "1-0"]
[ECO "B31"]
[WhiteElo "2281"]
[BlackElo "2336"]
[Annotator "NA"]
[PlyCount "53"]
[EventDate "2018.11.10"]
[EventType "team-tourn"]
[EventCountry "GBR"]
[SourceTitle "playchess.com"]
[Source "ChessBase"]
[SourceQuality "1"]
[TimeControl "40/6000+30:3000+30"]

1. e4 {[%emt 0:00:00]} c5 {[%emt 0:00:23]} 2. Nf3 {[%emt 0:00:00]} Nc6 {[%emt 0:00:07]} 3. Bb5 {[%emt 0:00:01]} g6 {[%emt 0:01:00]} 4. Bxc6 {[%emt 0:00:07]} dxc6 {[%emt 0:00:05]} 5. d3 {[%emt 0:00:06]} Bg7 {[%emt 0:00:11]} 6. h3 {[%emt 0:00:08]} Nf6 {[%emt 0:01:23]} 7. Nc3 {[%emt 0:01:26]} Nd7 {[%emt 0:02:29]} 8. O-O {[%emt 0:00:57]} e5 {[%emt 0:02:56]} 9. Be3 {[%emt 0:01:08]} b6 {[%emt 0:04:33]} 10. Qd2 {[%emt 0:07:25]} h6 {[%emt 0:00:59]} 11. Nh2 {[%emt 0:05:34]} Nf8 {[%emt 0:01:51]} 12. f4 {[%emt 0:02:20]} exf4 {[%emt 0:00:36]} 13. Bxf4 {[%emt 0:00:12]} g5 {[%emt 0:03:58]} 14. Bg3 {[%emt 0:02:01]} Ng6 {[%emt 0:06:48]} 15. e5 {[%emt 0:09:51]} O-O {[%emt 0:10:14]} 16. Rae1 {[%emt 0:03:55]} h5 {[%emt 0:20:24]} 17. Ne4 {[%emt 0:19:38]} h4 {[%emt 0:02:24]} 18. Bf2 {[%emt 0:01:25]} Bxe5 {[%emt 0:00:35]} 19. Nxg5 {[%emt 0:03:00]} Qc7 {[%emt 0:08:39]} 20. Nhf3 {[%emt 0:06:40]} Bf4 {[%emt 0:04:54]} 21. Be3 {[%emt 0:09:13]} Bxe3+ {[%emt 0:06:44]} 22. Qxe3 {[%emt 0:02:23]} f6 {[%emt 0:08:10]} 23. Ne6 {[%emt 0:07:08]} Bxe6 {[%emt 0:00:05]} 24. Qxe6+ {[%emt 0:00:04]} Kg7 {[%emt 0:00:04]} 25. Qg4 {[%emt 0:02:31]} Qg3 {[%emt 0:02:48]} 26. Re7+ {[%emt 0:08:42]} Kh6 {[%emt 0:01:28]} 27. Qh5+ {[%emt 0:00:48]} 1-0

[Event "4NCL Div 1 2018-19"]
[Site "Telford"]
[Date "2019.02.09"]
[Round "5.22"]
[White "Webb, Laurence E"]
[Black "Walton, Alan J"]
[Result "1-0"]
[ECO "C02"]
[WhiteElo "2333"]
[BlackElo "2140"]
[Annotator "NA"]
[PlyCount "99"]
[EventDate "2018.11.10"]
[EventType "team-tourn"]
[EventCountry "GBR"]
[SourceTitle "playchess.com"]
[Source "ChessBase"]
[SourceQuality "1"]
[TimeControl "40/6000+30:3000+30"]

1. e4 {[%emt 0:00:00]} e6 {[%emt 0:00:00]} 2. d4 {[%emt 0:00:03]} d5 {[%emt 0:00:00]} 3. e5 {[%emt 0:00:41]} c5 {[%emt 0:00:36]} 4. c3 {[%emt 0:02:58]} Nc6 {[%emt 0:00:27]} 5. Nf3 {[%emt 0:00:06]} Qb6 {[%emt 0:00:16]} 6. a3 {[%emt 0:00:17]} Nh6 {[%emt 0:00:22]} 7. b4 {[%emt 0:00:20]} cxd4 {[%emt 0:00:23]} 8. cxd4 {[%emt 0:00:11]} Nf5 {[%emt 0:00:08]} 9. Be3 {[%emt 0:00:26]} f6 {[%emt 0:00:22]} 10. exf6 {[%emt 0:00:31]} gxf6 {[%emt 0:00:04]} 11. Bd3 {[%emt 0:00:11]} Nxe3 {[%emt 0:00:16]} 12. fxe3 {[%emt 0:00:03]} Bh6 {[%emt 0:00:11]} 13. Qe2 {[%emt 0:00:10]} O-O {[%emt 0:00:52]} 14. Nc3 {[%emt 0:01:02]} Ne7 {[%emt 0:00:45]} 15. Na4 {[%emt 0:12:04]} Qd6 {[%emt 0:08:44]} 16. O-O {[%emt 0:03:16]} Ng6 {[%emt 0:19:11]} 17. Bxg6 {[%emt 0:07:37]} hxg6 {[%emt 0:00:05]} 18. e4 {[%emt 0:00:18]} b6 {[%emt 0:18:19]} 19. e5 {[%emt 0:06:53]} Qd7 {[%emt 0:01:15]} 20. Nc3 {[%emt 0:16:11]} f5 {[%emt 0:00:27]} 21. h4 {[%emt 0:08:30]} Qe7 {[%emt 0:00:57]} 22. Qf2 {[%emt 0:11:55]} Bd7 {[%emt 0:03:26]} 23. Qg3 {[%emt 0:00:57]} Kg7 {[%emt 0:02:35]} 24. Rfe1 {[%emt 0:06:40]} Rac8 {[%emt 0:01:16]} 25. Ne2 {[%emt 0:03:16]} Be3+ {[%emt 0:03:24]} 26. Kh2 {[%emt 0:01:49]} f4 {[%emt 0:03:20]} 27. Qg4 {[%emt 0:01:14]} Rf5 {[%emt 0:00:29]} 28. Neg1 {[%emt 0:05:04]} Bb5 {[%emt 0:07:57]} 29. Nh3 {[%emt 0:01:55]} Bd3 {[%emt 0:00:54]} 30. Rxe3 {[%emt 0:02:41]} fxe3 {[%emt 0:00:12]} 31. Nf4 {[%emt 0:00:06]} Rxf4 {[%emt 0:00:43]} 32. Qxf4 {[%emt 0:00:09]} Be4 {[%emt 0:01:29]} 33. Ng5 {[%emt 0:01:45]} Rc3 {[%emt 0:09:20]} 34. Rf1 {[%emt 0:04:48]} Bf5 {[%emt 0:02:14]} 35. g4 {[%emt 0:02:24]} e2 {[%emt 0:00:34]} 36. Re1 {[%emt 0:06:37]} Bd3 {[%emt 0:00:21]} 37. h5 {[%emt 0:03:20]} Rxa3 {[%emt 0:01:49]} 38. h6+ {[%emt 0:00:43]} Kxh6 {[%emt 0:00:28]} 39. Nxe6+ {[%emt 0:01:31]} Kh7 {[%emt 0:00:09]} 40. Ng5+ {[%emt 0:00:28]} Kg7 {[%emt 0:00:45]} 41. Kg2 {[%emt 0:03:06]} Be4+ {[%emt 0:03:59]} 42. Nxe4 {[%emt 0:11:06]} dxe4 {[%emt 0:00:03]} 43. Rh1 {[%emt 0:12:53]} e1=Q {[%emt 0:00:59]} 44. Qh6+ {[%emt 0:03:39]} Kg8 {[%emt 0:01:44]} 45. Qxg6+ {[%emt 0:02:03]} Qg7 {[%emt 0:00:04]} 46. Qxg7+ {[%emt 0:00:36]} Kxg7 {[%emt 0:00:21]} 47. Rxe1 {[%emt 0:00:01]} Rb3 {[%emt 0:01:26]} 48. Rxe4 {[%emt 0:01:44]} Rxb4 {[%emt 0:00:07]} 49. Kf3 {[%emt 0:00:06]} a5 {[%emt 0:00:10]} 50. d5 {[%emt 0:01:07]} 1-0

[Event "4NCL Div 1 2018-19"]
[Site "Telford"]
[Date "2019.02.09"]
[Round "5.22"]
[White "Dunn, Andrew"]
[Black "Harvey, Marcus R"]
[Result "0-1"]
[ECO "E16"]
[WhiteElo "2155"]
[BlackElo "2399"]
[Annotator "NA"]
[PlyCount "56"]
[EventDate "2018.11.10"]
[EventType "team-tourn"]
[EventCountry "GBR"]
[SourceTitle "playchess.com"]
[Source "ChessBase"]
[SourceQuality "1"]
[TimeControl "40/6000+30:3000+30"]

1. d4 {[%emt 0:00:00]} Nf6 {[%emt 0:02:15]} 2. c4 {[%emt 0:00:12]} e6 {[%emt 0:00:05]} 3. Nf3 {[%emt 0:00:16]} b6 {[%emt 0:00:32]} 4. g3 {[%emt 0:00:45]} Bb4+ {[%emt 0:00:54]} 5. Bd2 {[%emt 0:01:29]} Be7 {[%emt 0:00:47]} 6. Bg2 {[%emt 0:01:21]} Bb7 {[%emt 0:00:03]} 7. Nc3 {[%emt 0:01:15]} Ne4 {[%emt 0:03:24]} 8. d5 {[%emt 0:11:13]} Nxd2 {[%emt 0:00:36]} 9. Qxd2 {[%emt 0:01:47]} a5 {[%emt 0:00:40]} 10. O-O {[%emt 0:01:35]} Na6 {[%emt 0:00:47]} 11. Nd4 {[%emt 0:03:01]} Nc5 {[%emt 0:02:39]} 12. dxe6 {[%emt 0:03:25]} fxe6 {[%emt 0:01:37]} 13. Bxb7 {[%emt 0:00:15]} Nxb7 {[%emt 0:00:03]} 14. Rad1 {[%emt 0:05:22]} O-O {[%emt 0:01:19]} 15. Qc2 {[%emt 0:05:36]} Qe8 {[%emt 0:02:58]} 16. Ndb5 {[%emt 0:04:21]} Rc8 {[%emt 0:02:29]} 17. Qd2 {[%emt 0:20:34]} Nc5 {[%emt 0:00:59]} 18. a3 {[%emt 0:05:06]} d6 {[%emt 0:12:43]} 19. b4 {[%emt 0:06:08]} axb4 {[%emt 0:00:23]} 20. axb4 {[%emt 0:00:06]} Na6 {[%emt 0:00:03]} 21. Na2 {[%emt 0:09:59]} Ra8 {[%emt 0:02:13]} 22. Nd4 {[%emt 0:06:17]} Bf6 {[%emt 0:00:52]} 23. b5 {[%emt 0:05:09]} Nc5 {[%emt 0:00:26]} 24. Nc3 {[%emt 0:04:16]} Ra3 {[%emt 0:00:22]} 25. Nb1 {[%emt 0:07:03]} Ra4 {[%emt 0:00:28]} 26. e3 {[%emt 0:05:22]} Rxc4 {[%emt 0:00:22]} 27. Qe2 {[%emt 0:00:47]} Ra4 {[%emt 0:00:08]} 28. Qg4 {[%emt 0:00:26]} e5 {[%emt 0:00:05]} 0-1